[Event "Early-Titled-Tuesday-Blitz-July-09-2024"]
[Site "Chess.com"]
[Date "2024.07.09"]
[Round "10"]
[White "Sic_Transit_GM"]
[Black "slidingknight2775"]
[Result "1-0"]
[WhiteElo "2626"]
[BlackElo "2750"]
[TimeControl "180+1"]
[EndTime "9:57:51 PDT"]
[Termination "Sic_Transit_GM won by checkmate"]

1. Nf3 {[%clk 0:03:00.9]} 1... Nf6 {[%clk 0:02:59.4]} 2. c4 {[%clk 0:03:00.6]}
2... e6 {[%clk 0:02:59.2]} 3. e3 {[%clk 0:03:00.5]} 3... d5 {[%clk 0:02:57.4]}
4. Nc3 {[%clk 0:03:00.4]} 4... dxc4 {[%clk 0:02:56.8]} 5. Bxc4 {[%clk
0:02:59.8]} 5... a6 {[%clk 0:02:56.5]} 6. O-O {[%clk 0:02:46]} 6... b5 {[%clk
0:02:55.4]} 7. Be2 {[%clk 0:02:39.2]} 7... Bb7 {[%clk 0:02:55.3]} 8. d4 {[%clk
0:02:38.7]} 8... c5 {[%clk 0:02:54.6]} 9. Re1 {[%clk 0:02:34.4]} 9... Be7 {[%clk
0:02:49.1]} 10. Qc2 {[%clk 0:02:27.4]} 10... O-O {[%clk 0:02:46]} 11. dxc5
{[%clk 0:02:26.3]} 11... Bxc5 {[%clk 0:02:38.4]} 12. Nxb5 {[%clk 0:02:26.7]}
12... Bb4 {[%clk 0:02:28.1]} 13. Nc3 {[%clk 0:02:04.2]} 13... Nbd7 {[%clk
0:02:26.9]} 14. a3 {[%clk 0:01:58.8]} 14... Bd6 {[%clk 0:02:26.5]} 15. Bd2
{[%clk 0:01:53.2]} 15... Rc8 {[%clk 0:02:14.8]} 16. Rad1 {[%clk 0:01:45.1]}
16... Qc7 {[%clk 0:02:11.1]} 17. h3 {[%clk 0:01:37.6]} 17... Qb8 {[%clk
0:01:35.3]} 18. Qb1 {[%clk 0:01:33.2]} 18... Ne5 {[%clk 0:01:28.6]} 19. Nxe5
{[%clk 0:01:18.1]} 19... Bxe5 {[%clk 0:01:29.5]} 20. Bf1 {[%clk 0:01:13.6]}
20... Bh2+ {[%clk 0:01:15.1]} 21. Kh1 {[%clk 0:01:13.2]} 21... Be5 {[%clk
0:01:15.8]} 22. Rc1 {[%clk 0:00:40.7]} 22... Rcd8 {[%clk 0:00:27]} 23. Qc2
{[%clk 0:00:21.3]} 23... Qa8 {[%clk 0:00:13.1]} 24. Kg1 {[%clk 0:00:18.6]} 24...
Qb8 {[%clk 0:00:10.7]} 25. Red1 {[%clk 0:00:18]} 25... Bh2+ {[%clk 0:00:09.4]}
26. Kh1 {[%clk 0:00:18.2]} 26... Be5 {[%clk 0:00:10]} 27. Be1 {[%clk 0:00:17.6]}
27... Rc8 {[%clk 0:00:09.4]} 28. Qa4 {[%clk 0:00:17.4]} 28... Qa8 {[%clk
0:00:08.4]} 29. Kg1 {[%clk 0:00:16.8]} 29... h6 {[%clk 0:00:06.7]} 30. Ne2
{[%clk 0:00:07.8]} 30... Rxc1 {[%clk 0:00:03.4]} 31. Rxc1 {[%clk 0:00:08.1]}
31... Bxb2 {[%clk 0:00:04.3]} 32. Rb1 {[%clk 0:00:08.7]} 32... Be5 {[%clk
0:00:03.9]} 33. f4 {[%clk 0:00:07.4]} 33... Bc7 {[%clk 0:00:03.6]} 34. Nd4
{[%clk 0:00:07.6]} 34... Be4 {[%clk 0:00:03.7]} 35. Rc1 {[%clk 0:00:04.4]} 35...
Bb6 {[%clk 0:00:04.4]} 36. Qxa6 {[%clk 0:00:04.3]} 36... Bxd4 {[%clk 0:00:04.7]}
37. exd4 {[%clk 0:00:03.8]} 37... Qd8 {[%clk 0:00:04.7]} 38. Rd1 {[%clk
0:00:02.7]} 38... Qd5 {[%clk 0:00:04.6]} 39. Qe2 {[%clk 0:00:02.7]} 39... Ra8
{[%clk 0:00:04.6]} 40. Bb4 {[%clk 0:00:02.7]} 40... Qd7 {[%clk 0:00:03]} 41. Qb5
{[%clk 0:00:03]} 41... Bc6 {[%clk 0:00:02.6]} 42. Qe5 {[%clk 0:00:03.1]} 42...
Nd5 {[%clk 0:00:02.7]} 43. Be2 {[%clk 0:00:02]} 43... Bb5 {[%clk 0:00:02.4]} 44.
Bf3 {[%clk 0:00:02]} 44... Bc6 {[%clk 0:00:02.6]} 45. Rc1 {[%clk 0:00:01.8]}
45... Nxb4 {[%clk 0:00:02.8]} 46. axb4 {[%clk 0:00:02.7]} 46... Bxf3 {[%clk
0:00:03.1]} 47. gxf3 {[%clk 0:00:03.1]} 47... Qb7 {[%clk 0:00:03.2]} 48. Qe3
{[%clk 0:00:02.7]} 48... Qd5 {[%clk 0:00:03.3]} 49. Qe4 {[%clk 0:00:03]} 49...
Qb3 {[%clk 0:00:02.9]} 50. Qxa8+ {[%clk 0:00:02.9]} 50... Kh7 {[%clk 0:00:03.4]}
51. Qe4+ {[%clk 0:00:03.8]} 51... g6 {[%clk 0:00:03.6]} 52. Rc7 {[%clk
0:00:04.1]} 52... Kg7 {[%clk 0:00:03.6]} 53. Qe5+ {[%clk 0:00:03.6]} 53... Kg8
{[%clk 0:00:04.2]} 54. Rc8+ {[%clk 0:00:03.8]} 54... Kh7 {[%clk 0:00:03.6]} 55.
Rh8# {[%clk 0:00:04.4]} 1-0

[Event "Early-Titled-Tuesday-Blitz-July-09-2024"]
[Site "Chess.com"]
[Date "2024.07.09"]
[Round "10"]
[White "FGHSMN"]
[Black "FXDon77"]
[Result "1-0"]
[WhiteElo "3006"]
[BlackElo "2884"]
[TimeControl "180+1"]
[EndTime "9:57:52 PDT"]
[Termination "FGHSMN won by resignation"]

1. e4 {[%clk 0:03:00.9]} 1... e5 {[%clk 0:03:00.3]} 2. Nf3 {[%clk 0:02:58.3]}
2... Nf6 {[%clk 0:03:00.9]} 3. Nc3 {[%clk 0:02:58.7]} 3... Nc6 {[%clk
0:03:00.9]} 4. Bb5 {[%clk 0:02:59.1]} 4... Nd4 {[%clk 0:03:01.1]} 5. O-O {[%clk
0:02:59]} 5... c6 {[%clk 0:02:48.5]} 6. Bd3 {[%clk 0:02:58.3]} 6... Nxf3+ {[%clk
0:02:46.4]} 7. Qxf3 {[%clk 0:02:59.2]} 7... d6 {[%clk 0:02:45.5]} 8. Be2 {[%clk
0:02:47.4]} 8... g6 {[%clk 0:02:45.4]} 9. d3 {[%clk 0:02:46.8]} 9... Bg7 {[%clk
0:02:45.8]} 10. Qg3 {[%clk 0:02:47.2]} 10... O-O {[%clk 0:02:35.4]} 11. Kh1
{[%clk 0:02:43.8]} 11... d5 {[%clk 0:02:33]} 12. f4 {[%clk 0:02:37.2]} 12...
exf4 {[%clk 0:02:30]} 13. Bxf4 {[%clk 0:02:38.1]} 13... dxe4 {[%clk 0:02:30.1]}
14. dxe4 {[%clk 0:02:39]} 14... Qa5 {[%clk 0:02:13.8]} 15. Bc7 {[%clk
0:02:19.2]} 15... b6 {[%clk 0:02:07]} 16. a3 {[%clk 0:01:59]} 16... Nh5 {[%clk
0:01:14.6]} 17. Qe3 {[%clk 0:01:47.8]} 17... Qc5 {[%clk 0:00:49.9]} 18. Qxc5
{[%clk 0:01:47]} 18... bxc5 {[%clk 0:00:50.5]} 19. Na4 {[%clk 0:01:30.1]} 19...
Re8 {[%clk 0:00:46.2]} 20. Bxh5 {[%clk 0:01:16]} 20... gxh5 {[%clk 0:00:47.1]}
21. e5 {[%clk 0:01:16.6]} 21... Bxe5 {[%clk 0:00:39.4]} 22. Rfe1 {[%clk
0:01:11.3]} 22... f6 {[%clk 0:00:37.5]} 23. Nxc5 {[%clk 0:01:12]} 23... Bf5
{[%clk 0:00:36.5]} 24. Bxe5 {[%clk 0:01:11.2]} 24... Rxe5 {[%clk 0:00:34.6]} 25.
Rxe5 {[%clk 0:01:09]} 25... fxe5 {[%clk 0:00:35.5]} 26. Re1 {[%clk 0:01:03.4]}
26... Bxc2 {[%clk 0:00:30]} 27. Rxe5 {[%clk 0:01:02.5]} 27... Rd8 {[%clk
0:00:30.7]} 28. h3 {[%clk 0:00:58.6]} 28... Rd2 {[%clk 0:00:19.7]} 29. b4 {[%clk
0:00:52.3]} 29... Bg6 {[%clk 0:00:19.3]} 30. Re7 {[%clk 0:00:45.5]} 30... Bf7
{[%clk 0:00:18.8]} 31. Ne4 {[%clk 0:00:38.3]} 31... Rd1+ {[%clk 0:00:12.1]} 32.
Kh2 {[%clk 0:00:38.5]} 32... a6 {[%clk 0:00:05]} 33. Ra7 {[%clk 0:00:36.8]}
33... Kg7 {[%clk 0:00:04.2]} 34. Ng5 {[%clk 0:00:25.9]} 34... Rf1 {[%clk
0:00:03.6]} 35. Kg3 {[%clk 0:00:26.1]} 35... Kg6 {[%clk 0:00:01.9]} 36. Nxf7
{[%clk 0:00:21.7]} 36... Rxf7 {[%clk 0:00:02.8]} 37. Rxf7 {[%clk 0:00:22.1]}
37... Kxf7 {[%clk 0:00:02.9]} 38. Kf4 {[%clk 0:00:22]} 38... Kf6 {[%clk
0:00:03.2]} 39. Ke4 {[%clk 0:00:15.2]} 39... Ke6 {[%clk 0:00:03.3]} 40. Kd4
{[%clk 0:00:15]} 40... Kd6 {[%clk 0:00:03.7]} 41. Kc4 {[%clk 0:00:15.7]} 41...
h4 {[%clk 0:00:03.7]} 42. Kd4 {[%clk 0:00:15.6]} 42... h5 {[%clk 0:00:02.3]} 43.
Kc4 {[%clk 0:00:16]} 43... Kd7 {[%clk 0:00:02]} 44. Kc5 {[%clk 0:00:15.9]} 44...
Kc7 {[%clk 0:00:02.6]} 45. a4 {[%clk 0:00:16.6]} 45... Kb7 {[%clk 0:00:02.9]}
46. Kd4 {[%clk 0:00:07.4]} 46... Kc7 {[%clk 0:00:02.4]} 47. Ke5 {[%clk
0:00:02.6]} 47... Kb6 {[%clk 0:00:02.4]} 48. Kd6 {[%clk 0:00:02.8]} 48... Kb7
{[%clk 0:00:02.8]} 49. a5 {[%clk 0:00:03.1]} 49... c5 {[%clk 0:00:02.1]} 50.
Kxc5 {[%clk 0:00:03.6]} 50... Kc8 {[%clk 0:00:03]} 51. b5 {[%clk 0:00:03.7]}
51... axb5 {[%clk 0:00:02.8]} 52. Kxb5 {[%clk 0:00:04.6]} 52... Kb7 {[%clk
0:00:03.7]} 53. Kc5 {[%clk 0:00:05.5]} 53... Ka7 {[%clk 0:00:04.5]} 54. Kd5
{[%clk 0:00:06.4]} 54... Ka6 {[%clk 0:00:05.4]} 55. Ke5 {[%clk 0:00:07.3]} 55...
Kxa5 {[%clk 0:00:06.3]} 56. Kf5 {[%clk 0:00:08.2]} 56... Kb5 {[%clk 0:00:07.2]}
57. Kg5 {[%clk 0:00:09.1]} 57... Kc6 {[%clk 0:00:08.1]} 58. Kxh4 {[%clk
0:00:09.8]} 58... Kd7 {[%clk 0:00:09]} 59. Kxh5 {[%clk 0:00:10.7]} 59... Ke7
{[%clk 0:00:09.9]} 1-0

[Event "Early-Titled-Tuesday-Blitz-July-09-2024"]
[Site "Chess.com"]
[Date "2024.07.09"]
[Round "10"]
[White "Mostii"]
[Black "yonaltimur"]
[Result "0-1"]
[WhiteElo "2500"]
[BlackElo "2294"]
[TimeControl "180+1"]
[EndTime "9:57:52 PDT"]
[Termination "yonaltimur won by resignation"]

1. d4 {[%clk 0:03:00.9]} 1... d5 {[%clk 0:02:58.5]} 2. Nf3 {[%clk 0:03:01.8]}
2... Nf6 {[%clk 0:02:58.6]} 3. g3 {[%clk 0:03:02.7]} 3... g6 {[%clk 0:02:58.7]}
4. Bg2 {[%clk 0:03:03.6]} 4... Bg7 {[%clk 0:02:59.4]} 5. O-O {[%clk 0:03:04.5]}
5... O-O {[%clk 0:03:00.1]} 6. b3 {[%clk 0:03:05.4]} 6... c6 {[%clk 0:02:57.8]}
7. Bb2 {[%clk 0:03:05.7]} 7... Bf5 {[%clk 0:02:58]} 8. Nbd2 {[%clk 0:03:06.2]}
8... Nbd7 {[%clk 0:02:57.2]} 9. c4 {[%clk 0:03:07.1]} 9... Rc8 {[%clk
0:02:55.7]} 10. Ne5 {[%clk 0:03:06.8]} 10... Ne4 {[%clk 0:02:54.3]} 11. Nxd7
{[%clk 0:03:04.4]} 11... Qxd7 {[%clk 0:02:55.2]} 12. Nxe4 {[%clk 0:03:04.7]}
12... Bxe4 {[%clk 0:02:55.2]} 13. e3 {[%clk 0:03:05.1]} 13... Bxg2 {[%clk
0:02:54.5]} 14. Kxg2 {[%clk 0:03:06]} 14... Rfd8 {[%clk 0:02:54.4]} 15. Rc1
{[%clk 0:03:05.8]} 15... dxc4 {[%clk 0:02:53]} 16. Rxc4 {[%clk 0:03:06.7]} 16...
c5 {[%clk 0:02:52.7]} 17. Qf3 {[%clk 0:02:42.7]} 17... cxd4 {[%clk 0:02:47.7]}
18. Rxc8 {[%clk 0:02:39.8]} 18... Qxc8 {[%clk 0:02:43.6]} 19. Rc1 {[%clk
0:02:40.1]} 19... Qb8 {[%clk 0:02:31.9]} 20. exd4 {[%clk 0:01:47.4]} 20... Bxd4
{[%clk 0:02:32.8]} 21. Bxd4 {[%clk 0:01:31.6]} 21... Rxd4 {[%clk 0:02:33.7]} 22.
Rc5 {[%clk 0:01:32.3]} 22... b6 {[%clk 0:02:07.1]} 23. Rc6 {[%clk 0:01:32.4]}
23... Rd8 {[%clk 0:01:43.9]} 24. Qc3 {[%clk 0:01:29.8]} 24... Qb7 {[%clk
0:01:41.5]} 25. f3 {[%clk 0:01:29.3]} 25... Qd7 {[%clk 0:01:38.9]} 26. Rc7
{[%clk 0:01:14.3]} 26... Qd2+ {[%clk 0:01:37.7]} 27. Qxd2 {[%clk 0:01:15]} 27...
Rxd2+ {[%clk 0:01:38.1]} 28. Kh3 {[%clk 0:01:15.9]} 28... Rxa2 {[%clk
0:01:38.1]} 29. Rxe7 {[%clk 0:01:15.8]} 29... Ra3 {[%clk 0:01:35.3]} 30. b4
{[%clk 0:01:07.3]} 30... Rxf3 {[%clk 0:01:31.6]} 31. Rxa7 {[%clk 0:01:06.2]}
31... Rb3 {[%clk 0:01:30.9]} 32. Ra4 {[%clk 0:01:05.6]} 32... b5 {[%clk
0:01:29.8]} 33. Ra7 {[%clk 0:01:01.6]} 33... Rxb4 {[%clk 0:01:29.2]} 34. Rb7
{[%clk 0:01:02.5]} 34... Rb2 {[%clk 0:01:27.1]} 35. g4 {[%clk 0:01:01.5]} 35...
Kg7 {[%clk 0:01:24.5]} 36. g5 {[%clk 0:01:01.8]} 36... b4 {[%clk 0:01:19.1]} 37.
Kg3 {[%clk 0:00:59.6]} 37... Rb1 {[%clk 0:01:04.4]} 38. h4 {[%clk 0:00:41]}
38... b3 {[%clk 0:01:03.1]} 39. Kg2 {[%clk 0:00:37.4]} 39... b2 {[%clk
0:01:02.8]} 40. Kh2 {[%clk 0:00:31.9]} 40... h6 {[%clk 0:01:00.8]} 41. Kg2
{[%clk 0:00:31.3]} 41... hxg5 {[%clk 0:00:55.6]} 42. hxg5 {[%clk 0:00:32.2]}
42... Kf8 {[%clk 0:00:55.9]} 43. Kh2 {[%clk 0:00:31.7]} 43... Ke8 {[%clk
0:00:56.2]} 44. Kg2 {[%clk 0:00:32.3]} 44... Kd8 {[%clk 0:00:56]} 45. Kh2 {[%clk
0:00:32.9]} 45... Kc8 {[%clk 0:00:56.4]} 46. Rb3 {[%clk 0:00:33.6]} 46... Kd7
{[%clk 0:00:55.1]} 47. Kg2 {[%clk 0:00:34.2]} 47... Ke6 {[%clk 0:00:55.2]} 48.
Rb5 {[%clk 0:00:30.4]} 48... Kd6 {[%clk 0:00:48.9]} 49. Kh2 {[%clk 0:00:30.1]}
49... Kc6 {[%clk 0:00:45.5]} 50. Rb8 {[%clk 0:00:29.8]} 50... Kd5 {[%clk
0:00:45.1]} 51. Rb4 {[%clk 0:00:22.4]} 51... Ke5 {[%clk 0:00:41.1]} 52. Kg2
{[%clk 0:00:23]} 52... Kf5 {[%clk 0:00:39.5]} 53. Rb5+ {[%clk 0:00:23.4]} 53...
Kg4 {[%clk 0:00:39.8]} 54. Kh2 {[%clk 0:00:23.9]} 54... Rf1 {[%clk 0:00:35.3]}
55. Rxb2 {[%clk 0:00:22.9]} 55... Kxg5 {[%clk 0:00:35.4]} 56. Kg2 {[%clk
0:00:23.4]} 56... Rf4 {[%clk 0:00:35.3]} 57. Rb5+ {[%clk 0:00:21.4]} 57... f5
{[%clk 0:00:34.4]} 58. Kg3 {[%clk 0:00:22.1]} 58... Ra4 {[%clk 0:00:32.6]} 59.
Kf3 {[%clk 0:00:23]} 59... Ra3+ {[%clk 0:00:32.7]} 60. Kg2 {[%clk 0:00:23.6]}
60... Kg4 {[%clk 0:00:32.9]} 61. Rb6 {[%clk 0:00:22.2]} 61... Ra2+ {[%clk
0:00:30]} 62. Kg1 {[%clk 0:00:22.1]} 62... g5 {[%clk 0:00:30.3]} 63. Rb4+ {[%clk
0:00:20.3]} 63... f4 {[%clk 0:00:30.7]} 64. Rc4 {[%clk 0:00:20.8]} 64... Kg3
{[%clk 0:00:30.5]} 65. Rc1 {[%clk 0:00:19.9]} 65... f3 {[%clk 0:00:29.6]} 66.
Kh1 {[%clk 0:00:20.5]} 66... Rh2+ {[%clk 0:00:29.3]} 67. Kg1 {[%clk 0:00:20.4]}
67... f2+ {[%clk 0:00:29.8]} 68. Kf1 {[%clk 0:00:21.3]} 68... Rh1+ {[%clk
0:00:30.5]} 69. Ke2 {[%clk 0:00:22.2]} 69... Rxc1 {[%clk 0:00:31.1]} 0-1

[Event "Early-Titled-Tuesday-Blitz-July-09-2024"]
[Site "Chess.com"]
[Date "2024.07.09"]
[Round "10"]
[White "FloMasterAAK"]
[Black "dretch"]
[Result "1/2-1/2"]
[WhiteElo "2623"]
[BlackElo "2879"]
[TimeControl "180+1"]
[EndTime "9:57:53 PDT"]
[Termination "Game drawn by repetition"]

1. e4 {[%clk 0:03:00.9]} 1... e6 {[%clk 0:02:59.3]} 2. d4 {[%clk 0:03:00.7]}
2... d5 {[%clk 0:03:00]} 3. Nc3 {[%clk 0:03:01.1]} 3... Nf6 {[%clk 0:02:59.8]}
4. Bg5 {[%clk 0:03:01.3]} 4... dxe4 {[%clk 0:02:59.5]} 5. Nxe4 {[%clk
0:03:00.2]} 5... Be7 {[%clk 0:02:59.8]} 6. Bxf6 {[%clk 0:03:00]} 6... Bxf6
{[%clk 0:03:00.7]} 7. Nf3 {[%clk 0:02:57.7]} 7... Nd7 {[%clk 0:03:01.2]} 8. c3
{[%clk 0:02:55.6]} 8... O-O {[%clk 0:02:59.7]} 9. Bd3 {[%clk 0:02:55]} 9... e5
{[%clk 0:02:59.2]} 10. Nxf6+ {[%clk 0:02:54.3]} 10... Qxf6 {[%clk 0:02:58.4]}
11. O-O {[%clk 0:02:51.8]} 11... exd4 {[%clk 0:02:57.3]} 12. Nxd4 {[%clk
0:02:52.7]} 12... Ne5 {[%clk 0:02:57.7]} 13. Re1 {[%clk 0:02:49.2]} 13... Nxd3
{[%clk 0:02:47.8]} 14. Qxd3 {[%clk 0:02:50.1]} 14... c5 {[%clk 0:02:40.8]} 15.
Nb5 {[%clk 0:02:43.9]} 15... Qc6 {[%clk 0:02:06.4]} 16. c4 {[%clk 0:02:23.1]}
16... Be6 {[%clk 0:02:00.5]} 17. Rad1 {[%clk 0:02:21.2]} 17... h6 {[%clk
0:01:52.9]} 18. b3 {[%clk 0:02:15.8]} 18... a6 {[%clk 0:01:35.9]} 19. Nc3 {[%clk
0:02:01.5]} 19... b5 {[%clk 0:01:32.2]} 20. Nd5 {[%clk 0:01:58.8]} 20... Rfe8
{[%clk 0:01:22.2]} 21. h3 {[%clk 0:01:41.6]} 21... bxc4 {[%clk 0:01:09.5]} 22.
bxc4 {[%clk 0:01:41.1]} 22... Rab8 {[%clk 0:01:09.3]} 23. Qg3 {[%clk 0:01:33.7]}
23... Bxd5 {[%clk 0:00:53.8]} 24. cxd5 {[%clk 0:01:31.9]} 24... Qd7 {[%clk
0:00:49.2]} 25. Re3 {[%clk 0:01:11.7]} 25... c4 {[%clk 0:00:40.6]} 26. Qf4
{[%clk 0:00:58.2]} 26... Rxe3 {[%clk 0:00:32.8]} 27. Qxb8+ {[%clk 0:00:56.2]}
27... Re8 {[%clk 0:00:31.4]} 28. Qb4 {[%clk 0:00:53.5]} 28... Rc8 {[%clk
0:00:27.8]} 29. Qc3 {[%clk 0:00:50.5]} 29... Qd6 {[%clk 0:00:26.1]} 30. Rd4
{[%clk 0:00:46.5]} 30... Rc5 {[%clk 0:00:19.9]} 31. Rg4 {[%clk 0:00:43.4]} 31...
f6 {[%clk 0:00:14.2]} 32. Rxc4 {[%clk 0:00:41.7]} 32... Rxd5 {[%clk 0:00:14.5]}
33. Rc8+ {[%clk 0:00:40.3]} 33... Kh7 {[%clk 0:00:14.5]} 34. Qc2+ {[%clk
0:00:38.3]} 34... f5 {[%clk 0:00:15]} 35. Kf1 {[%clk 0:00:10.9]} 35... Rd1+
{[%clk 0:00:09.2]} 36. Ke2 {[%clk 0:00:11]} 36... Rd5 {[%clk 0:00:09.6]} 37. Rc3
{[%clk 0:00:10.7]} 37... Qe5+ {[%clk 0:00:05]} 38. Re3 {[%clk 0:00:10.6]} 38...
Qd4 {[%clk 0:00:05.1]} 39. g3 {[%clk 0:00:08.4]} 39... h5 {[%clk 0:00:05.1]} 40.
Kf3 {[%clk 0:00:07.7]} 40... h4 {[%clk 0:00:04.7]} 41. g4 {[%clk 0:00:07.7]}
41... Kg6 {[%clk 0:00:04.3]} 42. gxf5+ {[%clk 0:00:06.3]} 42... Rxf5+ {[%clk
0:00:04.1]} 43. Kg2 {[%clk 0:00:06.4]} 43... Qf6 {[%clk 0:00:03.8]} 44. Rf3
{[%clk 0:00:04.7]} 44... Kg5 {[%clk 0:00:04]} 45. Qd2+ {[%clk 0:00:02.7]} 45...
Kh5 {[%clk 0:00:04.3]} 46. Rxf5+ {[%clk 0:00:01.7]} 46... Qxf5 {[%clk
0:00:04.8]} 47. Qe2+ {[%clk 0:00:02.6]} 47... Kh6 {[%clk 0:00:04.3]} 48. Qxa6+
{[%clk 0:00:03.5]} 48... g6 {[%clk 0:00:04.1]} 49. Qe2 {[%clk 0:00:03.9]} 49...
Qd5+ {[%clk 0:00:04.2]} 50. f3 {[%clk 0:00:03.9]} 50... Kh7 {[%clk 0:00:03.4]}
51. Kf2 {[%clk 0:00:04.8]} 51... Kh6 {[%clk 0:00:03.6]} 52. Qe3+ {[%clk
0:00:05.1]} 52... Kh5 {[%clk 0:00:03.7]} 53. a3 {[%clk 0:00:05.2]} 53... Qa2+
{[%clk 0:00:03.6]} 54. Kg1 {[%clk 0:00:05.7]} 54... Qa1+ {[%clk 0:00:04]} 55.
Kg2 {[%clk 0:00:05.7]} 55... Qa2+ {[%clk 0:00:04.6]} 56. Kf1 {[%clk 0:00:05.1]}
56... Qa1+ {[%clk 0:00:05.1]} 57. Kf2 {[%clk 0:00:04.4]} 57... Qa2+ {[%clk
0:00:05.6]} 58. Kg1 {[%clk 0:00:03.7]} 58... Qa1+ {[%clk 0:00:06]} 59. Kf2
{[%clk 0:00:03.9]} 59... Qa2+ {[%clk 0:00:06.5]} 1/2-1/2

[Event "Early-Titled-Tuesday-Blitz-July-09-2024"]
[Site "Chess.com"]
[Date "2024.07.09"]
[Round "10"]
[White "wild3000"]
[Black "brm72"]
[Result "1-0"]
[WhiteElo "2484"]
[BlackElo "2642"]
[TimeControl "180+1"]
[EndTime "9:57:53 PDT"]
[Termination "wild3000 won by resignation"]

1. d4 {[%clk 0:02:57.4]} 1... Nf6 {[%clk 0:02:59.2]} 2. g3 {[%clk 0:02:57.5]}
2... e6 {[%clk 0:02:56.2]} 3. Bg2 {[%clk 0:02:57.5]} 3... c5 {[%clk 0:02:56.5]}
4. Nf3 {[%clk 0:02:55.3]} 4... Nc6 {[%clk 0:02:55.3]} 5. O-O {[%clk 0:02:55]}
5... cxd4 {[%clk 0:02:54.3]} 6. Nxd4 {[%clk 0:02:55.3]} 6... Qb6 {[%clk
0:02:54.6]} 7. Nb3 {[%clk 0:02:54.5]} 7... d5 {[%clk 0:02:54.2]} 8. Nc3 {[%clk
0:02:54.4]} 8... Be7 {[%clk 0:02:53.4]} 9. e4 {[%clk 0:02:54.6]} 9... dxe4
{[%clk 0:02:46.2]} 10. Nxe4 {[%clk 0:02:54.2]} 10... O-O {[%clk 0:02:44.6]} 11.
Be3 {[%clk 0:02:51.8]} 11... Qc7 {[%clk 0:02:44.5]} 12. Nc3 {[%clk 0:02:44.7]}
12... e5 {[%clk 0:02:42.2]} 13. Nb5 {[%clk 0:02:42]} 13... Qb8 {[%clk
0:02:38.3]} 14. Bc5 {[%clk 0:02:11.4]} 14... Bg4 {[%clk 0:02:28.1]} 15. Qd2
{[%clk 0:01:59.7]} 15... Bxc5 {[%clk 0:02:18]} 16. Nxc5 {[%clk 0:02:00.6]} 16...
a6 {[%clk 0:02:17.6]} 17. Nc3 {[%clk 0:01:58.7]} 17... Rd8 {[%clk 0:02:14.7]}
18. Qe3 {[%clk 0:01:48.6]} 18... Bf5 {[%clk 0:01:59.5]} 19. Rac1 {[%clk
0:01:40]} 19... Qc7 {[%clk 0:01:55.2]} 20. a3 {[%clk 0:01:07.4]} 20... Re8
{[%clk 0:01:49.4]} 21. N5e4 {[%clk 0:01:06.5]} 21... Nxe4 {[%clk 0:01:46.2]} 22.
Nxe4 {[%clk 0:01:02.7]} 22... Rad8 {[%clk 0:01:44.1]} 23. Rfd1 {[%clk
0:01:02.1]} 23... Nd4 {[%clk 0:01:36.3]} 24. c3 {[%clk 0:01:01.6]} 24... Nb3
{[%clk 0:01:36]} 25. Rxd8 {[%clk 0:01:00]} 25... Rxd8 {[%clk 0:01:35.2]} 26. Re1
{[%clk 0:01:00.4]} 26... f6 {[%clk 0:01:31.9]} 27. h4 {[%clk 0:00:59.6]} 27...
b6 {[%clk 0:01:14.1]} 28. Bf3 {[%clk 0:00:59.3]} 28... Nc5 {[%clk 0:01:09.8]}
29. Nxc5 {[%clk 0:00:58.2]} 29... Qxc5 {[%clk 0:01:10.7]} 30. Qxc5 {[%clk
0:00:58.3]} 30... bxc5 {[%clk 0:01:11.4]} 31. Rd1 {[%clk 0:00:58.8]} 31... Bd3
{[%clk 0:00:50.5]} 32. Be4 {[%clk 0:00:48.9]} 32... c4 {[%clk 0:00:50.1]} 33. b3
{[%clk 0:00:44.8]} 33... Rc8 {[%clk 0:00:35.9]} 34. Bd5+ {[%clk 0:00:37.4]}
34... Kf8 {[%clk 0:00:35.1]} 35. b4 {[%clk 0:00:36]} 35... Rd8 {[%clk
0:00:26.9]} 36. Bb7 {[%clk 0:00:34]} 36... Rd6 {[%clk 0:00:24.7]} 37. a4 {[%clk
0:00:33.8]} 37... Ke7 {[%clk 0:00:18.1]} 38. f3 {[%clk 0:00:30.5]} 38... f5
{[%clk 0:00:14.7]} 39. Kf2 {[%clk 0:00:28.5]} 39... e4 {[%clk 0:00:14.7]} 40.
fxe4 {[%clk 0:00:23.5]} 40... fxe4 {[%clk 0:00:15.6]} 41. Ke3 {[%clk 0:00:21.2]}
41... Ke6 {[%clk 0:00:15]} 42. Bxe4 {[%clk 0:00:19.2]} 42... Ke5 {[%clk
0:00:09.2]} 43. Bxd3 {[%clk 0:00:19.2]} 43... cxd3 {[%clk 0:00:10.1]} 44. Rxd3
{[%clk 0:00:19.7]} 44... Rg6 {[%clk 0:00:11]} 45. Kf3 {[%clk 0:00:19]} 45...
Rf6+ {[%clk 0:00:10.7]} 46. Kg2 {[%clk 0:00:19.1]} 46... Rc6 {[%clk 0:00:11.3]}
47. Kf3 {[%clk 0:00:17.7]} 47... Rc4 {[%clk 0:00:10.6]} 48. Ke2 {[%clk
0:00:17.5]} 48... Rg4 {[%clk 0:00:10]} 49. Kd2 {[%clk 0:00:17.4]} 49... h5
{[%clk 0:00:08]} 50. Kc2 {[%clk 0:00:17.3]} 50... Re4 {[%clk 0:00:06.2]} 51. Kb3
{[%clk 0:00:17.2]} 51... Re1 {[%clk 0:00:06.9]} 52. b5 {[%clk 0:00:17.4]} 52...
Rb1+ {[%clk 0:00:07]} 53. Kc4 {[%clk 0:00:17.5]} 53... Ra1 {[%clk 0:00:05.8]}
54. bxa6 {[%clk 0:00:15.8]} 54... Rxa4+ {[%clk 0:00:05.3]} 55. Kb5 {[%clk
0:00:16.3]} 55... Ra1 {[%clk 0:00:06.2]} 56. Rd4 {[%clk 0:00:15.3]} 56... Rb1+
{[%clk 0:00:07.1]} 57. Rb4 {[%clk 0:00:15.4]} 57... Ra1 {[%clk 0:00:07.5]} 58.
Ra4 {[%clk 0:00:14.5]} 58... Rb1+ {[%clk 0:00:07.8]} 59. Kc6 {[%clk 0:00:14.5]}
59... Rc1 {[%clk 0:00:08.2]} 60. c4 {[%clk 0:00:14]} 60... Rc3 {[%clk
0:00:09.1]} 61. a7 {[%clk 0:00:14]} 61... Ra3 {[%clk 0:00:10]} 62. Rxa3 {[%clk
0:00:13.9]} 1-0